bitfinex-derivatives/quotes_BTCF0:USTF0_20251210
["timestamp","ask_amount","ask_price","bid_price","bid_amount"]
[1765386361163,0.0803,92313.0,92312.0,0.112883]
[1765386361965,0.0803,92313.0,92312.0,0.113883]
[1765386362365,0.00108325,92315.0,92314.0,0.07938]
[1765386362978,0.04149325,92315.0,92314.0,0.07938]
[1765386363162,0.08138325,92315.0,92314.0,0.07938]
[1765386363674,0.08238325,92315.0,92314.0,0.07938]
[1765386363980,0.08238325,92315.0,92303.0,0.00016249]
[1765386363981,0.09816,92304.0,92303.0,0.00016249]
[1765386364282,0.091136,92286.0,92285.0,0.07938]
[1765386365666,0.0803,92284.0,92283.0,0.0108363]
[1765386365974,0.0803,92281.0,92280.0,0.1128867]
[1765386366178,0.0911366,92281.0,92280.0,0.14457165]
[1765386366385,0.0911371,92277.0,92276.0,0.00016249]
[1765386366680,0.1121271,92277.0,92276.0,0.00016249]
[1765386368182,0.1121271,92277.0,92276.0,0.00316249]
[1765386368876,0.1121271,92277.0,92276.0,0.00616249]
[1765386369584,0.1121271,92277.0,92276.0,0.00316249]
[1765386369770,0.1121271,92277.0,92276.0,0.00416249]
[1765386374673,0.0911371,92277.0,92276.0,0.04155249]
[1765386374884,0.0911371,92277.0,92276.0,0.08046249]
[1765386375084,0.0911371,92277.0,92276.0,0.00416249]
[1765386375682,0.0911371,92277.0,92276.0,0.04155249]
[1765386375884,0.0911371,92277.0,92276.0,0.00416249]
[1765386377889,0.0856684,92266.0,92265.0,0.00108384]
[1765386378882,0.0856684,92266.0,92265.0,0.00408384]
[1765386379185,0.0856684,92266.0,92265.0,0.00908384]
[1765386379887,0.0856684,92266.0,92265.0,0.04647384]
[1765386380080,0.0856684,92266.0,92265.0,0.08038384]
[1765386380386,0.0856684,92266.0,92265.0,0.08338384]
[1765386380583,0.0856684,92266.0,92265.0,0.08138384]
[1765386385191,0.0856684,92266.0,92265.0,0.00508384]
[1765386386593,0.0856684,92266.0,92265.0,0.08138384]
[1765386387185,0.3608,92267.0,92266.0,0.0871384]
[1765386387481,0.00016249,92275.0,92274.0,0.0871375]
[1765386388283,0.3608,92285.0,92274.0,0.0871375]
[1765386388284,0.3608,92285.0,92284.0,0.0852963]
[1765386388484,0.3608,92289.0,92288.0,0.0338158]
[1765386388685,0.43282,92300.0,92299.0,0.0852945]
[1765386389591,0.03592,92300.0,92299.0,0.0852945]
[1765386389984,0.07202,92300.0,92299.0,0.0852945]
[1765386390383,0.07302,92300.0,92299.0,0.0852945]
[1765386390881,0.001,92300.0,92291.0,0.0852954]
[1765386391086,0.07202,92295.0,92294.0,0.0852951]
[1765386391287,0.07202,92295.0,92294.0,0.07446]
[1765386391588,0.43282,92295.0,92294.0,0.07446]
[1765386392092,0.07202,92291.0,92290.0,0.03853249]
[1765386392297,0.07202,92291.0,92290.0,0.00016249]
[1765386393584,0.07202,92291.0,92290.0,0.00116249]
[1765386393894,0.07202,92291.0,92290.0,0.07562249]
[1765386394283,0.07202,92291.0,92290.0,0.07462249]
[1765386394483,0.07302,92291.0,92290.0,0.07462249]
[1765386394895,0.07302,92291.0,92290.0,0.08545809]
[1765386395096,0.07302,92291.0,92290.0,0.08645809]
[1765386395392,0.001,92291.0,92290.0,0.08645809]
[1765386395603,0.002,92291.0,92290.0,0.08545809]
[1765386395783,0.03792,92291.0,92290.0,0.08545809]
[1765386395982,0.002,92291.0,92290.0,0.08545809]
[1765386397193,0.001,92291.0,92290.0,0.08545809]
[1765386397388,0.3608,92295.0,92290.0,0.08545809]
[1765386397389,0.3608,92295.0,92294.0,0.0852951]
[1765386397894,0.39672,92295.0,92294.0,0.0852951]
[1765386398690,0.43382,92295.0,92294.0,0.0852951]
[1765386401195,0.3618,92295.0,92294.0,0.0852951]
[1765386402299,0.3608,92295.0,92294.0,0.0852951]
[1765386402702,0.3608,92295.0,92290.0,0.00016249]
[1765386402703,0.07202,92291.0,92290.0,0.00016249]
[1765386402996,0.07202,92276.0,92275.0,0.03837]
[1765386403189,0.07202,92276.0,92275.0,0.07446]
[1765386403600,0.0828572,92276.0,92275.0,0.07446]
[1765386403796,0.0828572,92276.0,92275.0,0.03837]
[1765386404102,0.07202,92267.0,92266.0,0.08546089]
[1765386404293,0.07202,92267.0,92266.0,0.11632057]
[1765386405299,0.0828575,92274.0,92273.0,0.07446]
[1765386406890,0.07202,92267.0,92266.0,0.04153249]
[1765386407099,0.07202,92267.0,92266.0,0.03853249]
[1765386408202,0.07202,92267.0,92266.0,0.03953249]
[1765386408397,0.07202,92267.0,92266.0,0.07562249]
[1765386409004,0.07202,92267.0,92266.0,0.07762249]
[1765386409907,0.3608,92268.0,92267.0,0.0852983]
[1765386410893,0.3716361,92286.0,92276.0,0.07446]
[1765386410894,0.43282,92277.0,92276.0,0.07446]
[1765386411300,0.0828564,92283.0,92282.0,0.0108363]
[1765386411510,0.0828564,92283.0,92280.0,0.02298]
[1765386411511,0.07202,92281.0,92280.0,0.02298]
[1765386411792,0.07202,92281.0,92280.0,0.09744]
[1765386411993,0.03608249,92285.0,92284.0,0.0852963]
[1765386412702,0.03608249,92285.0,92284.0,0.1172675]
[1765386413005,0.00016249,92285.0,92284.0,0.1172675]
[1765386413509,0.07218249,92285.0,92284.0,0.1172675]
[1765386414313,0.07218249,92285.0,92284.0,0.0319712]
[1765386414499,0.07218249,92285.0,92284.0,0.0703412]
[1765386415001,0.07318249,92285.0,92284.0,0.10050507]
[1765386415797,0.07218249,92285.0,92284.0,0.13659507]
[1765386416210,0.07218249,92285.0,92284.0,0.1074312]
[1765386420913,0.00016249,92285.0,92284.0,0.1074312]
[1765386421314,0.00016249,92285.0,92284.0,0.14635603]
[1765386422016,0.00016249,92285.0,92284.0,0.1074312]
[1765386423026,0.06874249,92285.0,92284.0,0.1074312]
[1765386429038,0.00016249,92285.0,92284.0,0.1074312]
[1765386431244,0.3608,92295.0,92294.0,0.0748151]
[1765386431420,0.0448733,92310.0,92309.0,0.06398]
[1765386431625,0.0773133,92310.0,92309.0,0.06398]
[1765386431922,0.0773133,92310.0,92309.0,0.09531397]
[1765386432124,0.0773133,92310.0,92309.0,0.06398]
[1765386432532,0.0773133,92310.0,92309.0,0.09530479]
[1765386432729,0.0773133,92310.0,92309.0,0.06398]
[1765386433233,0.0803133,92310.0,92309.0,0.06398]
[1765386434025,0.003,92310.0,92309.0,0.06398]
[1765386434229,0.005,92310.0,92309.0,0.06398]
[1765386435433,0.03904,92310.0,92309.0,0.06398]
[1765386435939,0.005,92310.0,92309.0,0.06398]
[1765386437235,0.07148,92310.0,92309.0,0.06398]
[1765386437639,0.005,92310.0,92309.0,0.06398]
[1765386438730,0.06648,92305.0,92304.0,0.7216]
[1765386438932,0.06648,92301.0,92300.0,0.03184249]
[1765386439333,0.0773143,92301.0,92300.0,0.00016249]
[1765386439534,0.4381143,92301.0,92300.0,0.00016249]
[1765386440035,0.0773157,92289.0,92288.0,0.3608]
[1765386441435,0.0773157,92289.0,92288.0,0.4366158]
[1765386441735,0.0773157,92289.0,92288.0,0.001]
[1765386442442,0.0773157,92289.0,92288.0,0.002]
[1765386443332,0.0773157,92289.0,92280.0,0.3608]
[1765386443333,0.0773166,92281.0,92280.0,0.3608]
[1765386444039,0.0773166,92281.0,92280.0,0.42478]
[1765386444644,0.0773166,92281.0,92280.0,0.3618]
[1765386446042,0.0773166,92281.0,92280.0,0.3608]
[1765386446640,0.0773166,92281.0,92280.0,0.39248]
[1765386446836,0.0773166,92281.0,92280.0,0.42478]
[1765386448245,0.0773166,92281.0,92280.0,0.4356168]
[1765386448641,0.06648,92281.0,92280.0,0.4356168]
[1765386449035,0.22034326,92290.0,92280.0,0.4356168]
[1765386449036,0.0765761,92286.0,92285.0,0.0776862]
[1765386449238,0.0108361,92286.0,92285.0,0.06685]
[1765386449435,0.0765761,92286.0,92285.0,0.06685]
[1765386450248,0.0795761,92286.0,92285.0,0.06685]
[1765386455550,0.079576,92286.0,92285.0,0.06685]
[1765386455946,0.003,92286.0,92285.0,0.06685]
[1765386456249,0.003,92286.0,92285.0,0.09777485]
[1765386456841,0.03611,92286.0,92285.0,0.09777485]
[1765386457041,0.003,92286.0,92285.0,0.09777485]
[1765386457946,0.002,92286.0,92285.0,0.09777485]
[1765386458247,0.06874,92286.0,92285.0,0.09777485]
[1765386458442,0.0108362,92285.0,92280.0,0.3608]
[1765386458642,0.08493,92281.0,92280.0,0.42765]
[1765386458840,0.0765766,92281.0,92280.0,0.42765]
[1765386459743,0.0775766,92281.0,92280.0,0.42765]
[1765386461851,0.0775766,92281.0,92280.0,0.3608]
[1765386462049,0.0775766,92281.0,92279.0,0.00016249]
[1765386462050,0.08493,92280.0,92279.0,0.00016249]
[1765386462249,0.08493,92280.0,92265.0,0.00108384]
[1765386462250,0.06574,92266.0,92265.0,0.06793384]
[1765386462556,0.4373784,92266.0,92265.0,0.06793384]
[1765386464353,0.4373784,92266.0,92265.0,0.07093384]
[1765386465054,0.4373784,92266.0,92265.0,0.07393384]
[1765386465354,0.4373784,92266.0,92265.0,0.07093384]
[1765386465655,0.4373784,92266.0,92265.0,0.06793384]
[1765386465847,0.4373784,92266.0,92265.0,0.06893384]
[1765386469150,0.4373784,92266.0,92265.0,0.03409467]
[1765386469753,0.4373784,92266.0,92265.0,0.06707467]
[1765386469953,0.4373784,92266.0,92265.0,0.10094467]
[1765386471257,0.4373784,92266.0,92265.0,0.06707467]
[1765386471560,0.4373784,92266.0,92265.0,0.10094467]
[1765386474944,0.4373784,92266.0,92265.0,0.00515701]
[1765386475146,0.4373784,92266.0,92248.0,0.02916566]
[1765386475147,0.06574,92249.0,92248.0,0.02916566]
[1765386475353,0.0765809,92245.0,92244.0,0.02916566]
[1765386475549,0.06574,92241.0,92240.0,0.03024979]
[1765386475759,0.06574,92241.0,92240.0,0.00108413]
[1765386475760,0.4373813,92241.0,92240.0,0.00108413]
[1765386477161,0.4373813,92241.0,92240.0,0.00208413]
[1765386477456,0.4373813,92241.0,92240.0,0.06893413]
[1765386477851,0.42654,92241.0,92240.0,0.06893413]
[1765386478456,0.39391,92241.0,92240.0,0.06893413]
[1765386478658,0.42579,92241.0,92240.0,0.06893413]
[1765386478957,0.44493,92241.0,92240.0,0.06893413]
[1765386479256,0.44493,92241.0,92240.0,0.00208413]
[1765386480457,0.42579,92241.0,92240.0,0.07640563]
[1765386480852,0.39391,92241.0,92240.0,0.07640563]
[1765386481160,0.44493,92241.0,92240.0,0.03459413]
[1765386481458,0.44493,92241.0,92240.0,0.00208413]
[1765386482775,0.44493,92241.0,92240.0,0.06556413]
[1765386483353,0.42579,92241.0,92240.0,0.06556413]
[1765386483864,0.4344804,92249.0,92248.0,0.06348]
[1765386484062,0.08198,92241.0,92240.0,0.00208413]
[1765386484261,0.0736832,92225.0,92224.0,0.39331]
[1765386484461,0.0736832,92225.0,92224.0,0.06348]
[1765386484962,0.0736832,92225.0,92224.0,0.03251]
[1765386485163,0.0736832,92225.0,92224.0,0.06348]
[1765386486563,0.0736832,92225.0,92224.0,0.07048]
[1765386486759,0.0108428,92229.0,92224.0,0.007]
[1765386487061,0.0736828,92229.0,92228.0,0.06348]
[1765386487264,0.0108428,92229.0,92228.0,0.06348]
[1765386487655,0.00016258,92234.0,92233.0,0.06348]
[1765386488457,0.00016258,92234.0,92233.0,0.09367029]
[1765386489467,0.00016258,92234.0,92233.0,0.09567029]
[1765386489668,0.00016258,92234.0,92233.0,0.09767029]
[1765386490468,0.03262258,92234.0,92233.0,0.09767029]
[1765386490859,0.00016258,92234.0,92233.0,0.09767029]
[1765386495167,0.00016258,92234.0,92233.0,0.13660048]
[1765386497370,0.0739407,92250.0,92243.0,0.0108411]
[1765386497572,0.0739407,92250.0,92249.0,0.06212]
[1765386498364,0.0749407,92250.0,92249.0,0.06212]
[1765386499075,0.0739407,92250.0,92249.0,0.06212]
[1765386499272,0.0769407,92250.0,92249.0,0.06212]
[1765386501371,0.0769407,92250.0,92240.0,0.0474266]
[1765386501372,0.0108412,92242.0,92240.0,0.00016258]
[1765386501567,0.0739412,92242.0,92241.0,0.03027138]
[1765386505768,0.0739412,92242.0,92241.0,0.09239138]
[1765386505978,0.0739412,92242.0,92241.0,0.03027138]
[1765386507879,0.0739412,92242.0,92241.0,0.06184138]
[1765386508177,0.0739412,92242.0,92241.0,0.03027138]
[1765386510482,0.39069,92243.0,92242.0,0.0733312]
[1765386510783,0.3608,92243.0,92242.0,0.10360258]
[1765386511382,0.42083,92253.0,92252.0,0.07333]
[1765386511566,0.42083,92253.0,92252.0,0.10360138]
[1765386511967,0.42083,92253.0,92252.0,0.09276138]
[1765386513085,0.42283,92253.0,92252.0,0.09276138]
[1765386513575,0.42483,92253.0,92252.0,0.09276138]
[1765386516877,0.44399,92253.0,92252.0,0.09276138]
[1765386517379,0.44399,92253.0,92252.0,0.03027138]
[1765386518180,0.44399,92253.0,92252.0,0.09276138]
[1765386520690,0.42483,92253.0,92252.0,0.09276138]
[1765386520887,0.06403,92253.0,92252.0,0.09276138]
[1765386521189,0.03389,92253.0,92252.0,0.09276138]
[1765386521693,0.0748699,92253.0,92252.0,0.09309525]
[1765386521883,0.0748699,92253.0,92252.0,0.10393525]
[1765386522191,0.0748699,92253.0,92252.0,0.13317366]
[1765386522677,0.0728699,92253.0,92252.0,0.13317366]
[1765386522879,0.0738699,92253.0,92252.0,0.07333]
[1765386523485,0.0930299,92253.0,92252.0,0.06249]
[1765386523789,0.0708702,92251.0,92250.0,0.0108402]
[1765386523990,0.0708702,92251.0,92250.0,0.07438608]
[1765386524199,0.0708702,92251.0,92250.0,0.10505608]
[1765386524496,0.0708702,92251.0,92250.0,0.03172588]
[1765386524684,0.0708707,92246.0,92245.0,0.42329]
[1765386524883,0.0708707,92246.0,92245.0,0.45501465]
[1765386525381,0.06003,92246.0,92245.0,0.45501465]
[1765386528495,0.4316698,92254.0,92253.0,0.06249]
[1765386528789,0.3608,92254.0,92253.0,0.11207995]
[1765386528981,0.3608,92262.0,92258.0,0.0733293]
[1765386529181,0.3608,92262.0,92258.0,0.10504838]
[1765386529388,0.00108384,92265.0,92258.0,0.46584838]
[1765386529984,0.01192244,92265.0,92258.0,0.46584838]
[1765386531089,0.00116258,92259.0,92258.0,0.46584838]
[1765386531301,0.00316258,92259.0,92258.0,0.46584838]
[1765386531687,0.00116258,92259.0,92258.0,0.46584838]
[1765386531901,0.06019258,92259.0,92258.0,0.45500908]
[1765386534302,0.06019258,92259.0,92258.0,0.48420302]
[1765386534797,0.06019258,92259.0,92258.0,0.03171908]
[1765386535604,0.06003,92251.0,92250.0,0.0426602]
[1765386535802,0.0708703,92251.0,92250.0,0.0739185]
[1765386536003,0.0708703,92251.0,92250.0,0.1045885]
[1765386537096,0.0708703,92251.0,92250.0,0.0332583]
[1765386537507,0.0708703,92251.0,92250.0,0.004]
[1765386538408,0.0708703,92251.0,92250.0,0.002]
[1765386538607,0.0696111,92243.0,92242.0,0.0426612]
[1765386538905,0.0696111,92243.0,92242.0,0.0736333]
[1765386539409,0.0696111,92243.0,92242.0,0.1020433]
[1765386539802,0.05877,92243.0,92242.0,0.1020433]
[1765386540699,0.3608,92246.0,92245.0,0.0679009]
[1765386541009,0.001,92251.0,92250.0,0.0679003]
[1765386541212,0.001,92251.0,92250.0,0.0988724]
[1765386541408,0.00016258,92259.0,92258.0,0.0678993]
[1765386541608,0.00016258,92259.0,92258.0,0.4596714]
[1765386541909,0.00016258,92259.0,92258.0,0.49863548]
[1765386542411,0.00016258,92259.0,92258.0,0.4596714]
[1765386543703,0.00116258,92259.0,92258.0,0.4596714]
[1765386544305,0.00016258,92259.0,92258.0,0.4596714]
[1765386545512,0.05839258,92259.0,92258.0,0.4986194]
[1765386545706,0.05839258,92259.0,92258.0,0.06018516]
[1765386545907,0.05839258,92259.0,92258.0,0.0309721]
[1765386546413,0.41919258,92259.0,92258.0,0.0309721]
[1765386546712,0.05823,92249.0,92248.0,0.02921306]
[1765386546900,0.05823,92249.0,92248.0,0.11691303]
[1765386547104,0.05823,92256.0,92255.0,0.0678997]
[1765386547307,0.36096258,92259.0,92258.0,0.0678993]
[1765386547308,0.02951258,92259.0,92258.0,0.0678993]
[1765386547506,0.05839258,92259.0,92258.0,0.09853927]
[1765386548011,0.05839258,92259.0,92258.0,0.08769997]
[1765386548816,0.41919258,92259.0,92258.0,0.03063997]
[1765386550024,0.07849,92250.0,92249.0,0.09942716]
[1765386550323,0.06088,92250.0,92249.0,0.13002038]
[1765386551315,0.06088,92250.0,92249.0,0.13102038]
[1765386551516,0.07849,92250.0,92249.0,0.13102038]
[1765386552215,0.06088,92250.0,92249.0,0.13102038]
[1765386552522,0.06088,92250.0,92249.0,0.13202038]
[1765386553219,0.42184258,92259.0,92258.0,0.0702093]
[1765386553420,0.42184258,92259.0,92258.0,0.08996322]
[1765386553611,0.42184258,92259.0,92258.0,0.03059322]
[1765386554305,0.42184258,92259.0,92258.0,0.05977322]
[1765386555723,0.42184258,92259.0,92249.0,0.02921914]
[1765386555724,0.0717203,92250.0,92249.0,0.02921914]
[1765386556029,0.0717203,92250.0,92249.0,0.05981379]
[1765386556814,0.0717203,92250.0,92249.0,0.13002419]
[1765386557123,0.06088,92250.0,92249.0,0.13202419]
[1765386558421,0.06088,92250.0,92249.0,0.12118379]
[1765386558618,0.0717213,92241.0,92240.0,0.00016258]
[1765386558820,0.0717213,92241.0,92209.0,0.3608]
[1765386558821,0.0717233,92224.0,92222.0,0.038948]
[1765386559015,0.06088,92223.0,92222.0,0.068128]
[1765386559221,0.06088,92223.0,92222.0,0.02918]
[1765386560022,0.06088,92223.0,92222.0,0.03318]
[1765386560627,0.0717242,92217.0,92216.0,0.42017]
[1765386560817,0.06088,92217.0,92216.0,0.42017]
[1765386561621,0.0717242,92217.0,92216.0,0.42017]
[1765386562127,0.0717242,92217.0,92216.0,0.4310143]
[1765386562427,0.0717242,92217.0,92216.0,0.4350143]
[1765386562621,0.0717242,92217.0,92216.0,0.4400143]
[1765386563718,0.0717242,92217.0,92216.0,0.42917]
[1765386565927,0.06088,92217.0,92216.0,0.42917]
[1765386567124,0.02986,92217.0,92216.0,0.42917]
[1765386568418,0.06088,92217.0,92216.0,0.42917]
[1765386570825,0.06088,92217.0,92216.0,0.45910967]
[1765386571420,0.02986,92217.0,92216.0,0.45910967]
[1765386571617,0.05921,92222.0,92221.0,0.0697837]
[1765386571821,0.0700536,92222.0,92221.0,0.0697837]
[1765386573134,0.0700536,92222.0,92221.0,0.0737837]
[1765386573933,0.0700536,92222.0,92221.0,0.0777837]
[1765386575330,0.0700536,92222.0,92221.0,0.06694]
[1765386575526,0.0700536,92222.0,92221.0,0.008]
[1765386577937,0.0700536,92222.0,92221.0,0.03818]
[1765386578241,0.0700536,92222.0,92221.0,0.06694]
[1765386581338,0.05921,92222.0,92221.0,0.0777837]
[1765386581538,0.4308527,92229.0,92228.0,0.05894]
[1765386581733,0.92433,92229.0,92228.0,0.05894]
[1765386581931,0.86512,92229.0,92228.0,0.05894]
[1765386582836,0.92433,92229.0,92228.0,0.06394]
[1765386583744,0.86512,92229.0,92228.0,0.06394]
[1765386584437,0.86512,92229.0,92228.0,0.005]
[1765386584438,0.92433,92229.0,92228.0,0.005]
[1765386584942,0.92433,92229.0,92208.0,0.01797]
[1765386584943,0.0700543,92216.0,92208.0,0.01797]
[1765386585140,0.0700543,92216.0,92215.0,0.03058304]
[1765386585336,0.0700543,92216.0,92215.0,0.08952304]
[1765386586132,0.0700543,92216.0,92215.0,0.09452304]
[1765386586340,0.0700543,92216.0,92215.0,0.09952304]
[1765386588046,0.05921,92216.0,92215.0,0.09952304]
[1765386589740,0.05921,92216.0,92215.0,0.0995942]
[1765386591242,0.3608,92219.0,92216.0,0.0873243]
[1765386591438,0.3608,92219.0,92218.0,0.05894]
[1765386591637,0.3608,92219.0,92218.0,0.08850977]
[1765386591837,0.39029,92219.0,92218.0,0.08850977]
[1765386592139,0.42001,92219.0,92218.0,0.08850977]
[1765386593143,0.42001,92219.0,92218.0,0.09935377]
[1765386593847,0.05921,92219.0,92218.0,0.09935377]
[1765386594141,0.02949,92219.0,92218.0,0.10235377]
[1765386594349,0.56357,92224.0,92223.0,0.0697835]
[1765386594543,0.56357,92224.0,92223.0,0.09935327]
[1765386595943,0.56357,92224.0,92223.0,0.10235327]
[1765386596853,0.56357,92224.0,92223.0,0.10435327]
[1765386598657,0.00016258,92232.0,92231.0,0.0705625]
[1765386598953,0.00016258,92232.0,92231.0,0.10013227]
[1765386599552,0.421,92245.0,92244.0,0.070561]
[1765386599749,0.421,92245.0,92244.0,0.10013077]
[1765386600348,0.421,92245.0,92244.0,0.08928977]
[1765386601144,0.00016258,92254.0,92253.0,0.0705599]
[1765386601344,0.06128384,92265.0,92264.0,0.0871786]
[1765386601545,0.00108384,92265.0,92264.0,0.11674837]
[1765386602249,0.06128384,92265.0,92264.0,0.10012837]
[1765386602648,0.06128384,92265.0,92264.0,0.11674837]
[1765386603066,0.06528384,92265.0,92264.0,0.11674837]
[1765386603876,0.06828384,92265.0,92264.0,0.08928977]
[1765386604071,0.00808384,92265.0,92264.0,0.07634]
[1765386604468,0.00808384,92265.0,92264.0,0.10592554]
[1765386604668,0.00608384,92265.0,92264.0,0.10592554]
[1765386605079,0.03578384,92265.0,92264.0,0.07634]
[1765386605280,0.00608384,92265.0,92264.0,0.07634]
[1765386605481,0.00508384,92265.0,92264.0,0.07634]
[1765386605870,0.06528384,92265.0,92264.0,0.07634]
[1765386606071,0.06328384,92265.0,92264.0,0.07634]
[1765386606968,0.06328384,92265.0,92264.0,0.05972]
[1765386607175,0.0602,92260.0,92259.0,0.39025]
[1765386607582,0.0297,92260.0,92259.0,0.42052]
[1765386607980,0.0602,92260.0,92259.0,0.42052]
[1765386608383,0.0887796,92256.0,92255.0,0.00016258]
[1765386608678,0.4495796,92256.0,92255.0,0.00016258]
[1765386609470,0.4505796,92256.0,92255.0,0.00016258]
[1765386609682,0.4328396,92256.0,92255.0,0.05837258]
[1765386609884,0.4338396,92256.0,92255.0,0.00016258]
[1765386610383,0.4328396,92256.0,92255.0,0.00016258]
[1765386610582,0.4328396,92256.0,92238.0,0.3608]
[1765386610583,0.02933,92239.0,92238.0,0.3608]
[1765386610782,0.05772,92239.0,92238.0,0.3608]
[1765386610986,0.05772,92229.0,92228.0,0.05821]
[1765386611186,0.0685627,92229.0,92228.0,0.08881484]
[1765386611391,0.0685627,92229.0,92228.0,0.02823]
[1765386611684,0.0685627,92229.0,92228.0,0.05821]
[1765386612494,0.0685627,92229.0,92228.0,0.06121]
[1765386612875,0.0685627,92229.0,92228.0,0.03123]
[1765386613688,0.05772,92229.0,92228.0,0.06321]
[1765386614691,0.05772,92229.0,92228.0,0.005]
[1765386615187,0.562,92229.0,92228.0,0.005]
[1765386616887,0.562,92229.0,92228.0,0.03323]
[1765386616888,0.56204,92229.0,92228.0,0.03323]
[1765386617083,0.56204,92229.0,92228.0,0.005]
[1765386622997,0.56204,92229.0,92219.0,0.00016258]
[1765386622998,0.0685638,92220.0,92219.0,0.00016258]
[1765386623289,0.4293638,92220.0,92219.0,0.00016258]
[1765386624193,0.4293638,92220.0,92219.0,0.00316258]
[1765386624390,0.0857243,92216.0,92215.0,0.00108443]
[1765386624579,0.5901243,92216.0,92215.0,0.00108443]
[1765386624785,0.5901243,92216.0,92215.0,0.02931443]
[1765386624992,0.5729643,92216.0,92215.0,0.05929443]
[1765386625988,0.5729643,92216.0,92215.0,0.06229443]
[1765386626195,0.5729643,92216.0,92215.0,0.06729443]
[1765386626597,0.5900943,92216.0,92215.0,0.00908443]
[1765386629796,0.5729643,92216.0,92215.0,0.03731443]
[1765386631703,0.5729643,92216.0,92215.0,0.06477443]
[1765386633803,0.5729643,92216.0,92215.0,0.03731443]
[1765386635397,0.5729643,92216.0,92215.0,0.06477443]
[1765386636797,0.5729643,92216.0,92215.0,0.00908443]
[1765386637704,0.068516,92201.0,92200.0,0.36089159]
[1765386637894,0.572876,92201.0,92200.0,9.159e-05]
[1765386638398,0.933676,92201.0,92200.0,9.159e-05]
[1765386639096,0.933676,92201.0,92190.0,0.00108472]
[1765386639097,0.0685167,92195.0,92190.0,0.00108472]
[1765386640306,0.0685172,92191.0,92190.0,0.00108472]
[1765386640607,0.93381243,92191.0,92190.0,0.00108472]
[1765386641308,0.9337172,92191.0,92190.0,0.00108472]
[1765386641495,0.0685178,92186.0,92176.0,0.3608]
[1765386642311,0.06861303,92186.0,92178.0,0.0108487]
[1765386642507,0.03019,92186.0,92185.0,0.06353]
[1765386642703,0.56220523,92186.0,92185.0,0.06353]
[1765386642902,0.56720523,92186.0,92185.0,0.06453]
[1765386643209,0.57020523,92186.0,92185.0,0.06553]
[1765386644007,0.06576523,92186.0,92185.0,0.06553]
[1765386644206,0.00809523,92186.0,92185.0,0.09610443]
[1765386644414,0.06576523,92186.0,92185.0,0.09610443]
[1765386646417,0.06576523,92186.0,92185.0,0.04085443]
[1765386646825,0.06576523,92186.0,92185.0,0.06864443]
[1765386647024,0.06576523,92186.0,92185.0,0.04085443]
[1765386647313,0.06576523,92186.0,92185.0,0.09610443]
[1765386648619,0.06576523,92186.0,92185.0,0.04085443]
[1765386648808,0.06576523,92186.0,92185.0,0.01028]
[1765386649118,0.03828523,92186.0,92185.0,0.09610217]
[1765386649713,0.06576523,92186.0,92185.0,0.09610217]
[1765386652708,0.06576523,92186.0,92185.0,0.01028]
[1765386652709,0.06576037,92186.0,92185.0,0.01028]
[1765386653008,0.06567,92186.0,92185.0,0.01028]
[1765386653214,0.06567,92186.0,92185.0,0.04085323]
[1765386653718,0.06567,92186.0,92185.0,0.01028]
[1765386654105,0.06567,92186.0,92185.0,0.04075297]
[1765386655112,0.06567,92186.0,92185.0,0.09600297]
[1765386655308,0.008,92186.0,92185.0,0.09600297]
[1765386655514,0.00809523,92186.0,92185.0,0.09600297]
[1765386658215,0.00809523,92186.0,92185.0,0.13497445]
[1765386659216,0.00309523,92186.0,92185.0,0.13497445]
[1765386659420,0.3608,92205.0,92204.0,0.0688357]
[1765386659421,0.4307356,92205.0,92204.0,0.0688357]
[1765386659624,0.41989,92205.0,92204.0,0.09930867]
[1765386660410,0.41989,92205.0,92204.0,0.10030867]
[1765386660614,0.42489,92205.0,92204.0,0.10030867]
[1765386661122,0.43489,92205.0,92204.0,0.10130867]
[1765386661523,0.42489,92205.0,92204.0,0.10030867]
[1765386661710,0.013,92205.0,92204.0,0.10130867]
[1765386661910,0.013,92205.0,92204.0,0.1305178]
[1765386662125,0.013,92205.0,92204.0,0.10130867]
[1765386662315,0.00016267,92210.0,92209.0,0.0688351]
[1765386662514,0.00016267,92210.0,92209.0,0.09930807]
[1765386664027,0.00216267,92210.0,92209.0,0.09930807]
[1765386664634,0.00616267,92210.0,92209.0,0.09930807]
[1765386665728,0.00716267,92210.0,92209.0,0.09930807]
[1765386665919,0.00108443,92215.0,92214.0,0.0688345]
[1765386666119,0.08715614,92239.0,92228.0,0.0688329]
[1765386666120,0.39003,92229.0,92228.0,0.0688329]
[1765386666325,0.3608,92229.0,92228.0,0.0688329]
[1765386666525,0.0108423,92233.0,92225.0,0.0169]
[1765386666526,0.0699319,92236.0,92235.0,0.068832]
[1765386666724,0.4307319,92236.0,92235.0,0.068832]
[1765386667527,0.4307319,92236.0,92235.0,0.05799]
[1765386667728,0.4367319,92236.0,92235.0,0.05899]
[1765386668129,0.4307319,92236.0,92235.0,0.05799]
[1765386668332,0.4367319,92236.0,92235.0,0.05899]
[1765386668725,0.4367319,92236.0,92235.0,0.001]
[1765386668927,0.069933,92227.0,92226.0,0.00016267]
[1765386669118,0.069933,92227.0,92203.0,0.02921011]
[1765386669119,0.05909,92203.0,92200.0,0.0169]
[1765386669324,0.05886,92195.0,92194.0,0.4291669]
[1765386669831,0.05886,92195.0,92194.0,0.3608]
[1765386670036,0.05886,92195.0,92194.0,0.41832]
[1765386670332,0.05886,92195.0,92194.0,0.38883]
[1765386670531,0.05886,92195.0,92194.0,0.39283]
[1765386670734,0.05886,92195.0,92194.0,0.4331669]
[1765386671442,0.05886,92195.0,92194.0,0.4291669]
[1765386671729,0.06186,92195.0,92194.0,0.4291669]
[1765386672320,0.06286,92195.0,92194.0,0.4291669]
[1765386672521,0.06286,92195.0,92194.0,0.41832]
[1765386672834,0.06286,92195.0,92194.0,0.02803]
[1765386673236,0.05886,92186.0,92185.0,0.00828]
[1765386673627,0.05886,92186.0,92185.0,0.0658]
[1765386674335,0.3608,92189.0,92188.0,0.05752]
[1765386674528,0.06286,92195.0,92194.0,0.05752]
[1765386675127,0.05886,92195.0,92194.0,0.05752]
[1765386675529,0.39095,92200.0,92199.0,0.0683663]
[1765386676130,0.03015,92200.0,92199.0,0.0683663]
[1765386676839,0.03215,92200.0,92199.0,0.0683663]
[1765386677132,0.03215,92200.0,92199.0,0.0693663]
[1765386678229,0.03015,92200.0,92199.0,0.0693663]
[1765386678433,0.03215,92200.0,92199.0,0.0693663]
[1765386679430,0.06488,92200.0,92199.0,0.001]